fUST/lending_fUST_20260127
["ID","MTS","AMOUNT","RATE_DAILY","PERIOD"]
[403731206,1769514638843,-500.0,0.00011948,2]
[403731207,1769514638853,-500.0,0.00011948,2]
[403731208,1769514638863,-500.0,0.00011948,2]
[403731209,1769514638872,-500.0,0.00011948,2]
[403731210,1769514638882,-500.0,0.00011948,2]
[403731211,1769514638892,-500.0,0.00011948,2]
[403731212,1769514638901,-500.0,0.00011948,2]
[403731213,1769514638911,-500.0,0.00011948,2]
[403731214,1769514638920,-500.0,0.00011948,2]
[403731215,1769514638930,-500.0,0.00011948,2]
[403731216,1769514638940,-500.0,0.00011948,2]
[403731217,1769514638950,-500.0,0.00011948,2]
[403731218,1769514638959,-500.0,0.00011948,2]
[403731219,1769514638968,-500.0,0.00011948,2]
[403731220,1769514638978,-500.0,0.00011948,2]
[403731221,1769514638988,-500.0,0.00011948,2]
[403731222,1769514638998,-500.0,0.00011948,2]
[403731223,1769514639008,-500.0,0.00011948,2]
[403731224,1769514639018,-500.0,0.00011948,2]
[403731225,1769514639027,-500.0,0.00011948,2]
[403731226,1769514639036,-500.0,0.00011948,2]
[403731227,1769514639046,-500.0,0.00011948,2]
[403731228,1769514639055,-500.0,0.00011948,2]
[403731229,1769514639065,-500.0,0.00011948,2]
[403731230,1769514639075,-500.0,0.00011948,2]
[403731231,1769514639085,-500.0,0.00011948,2]
[403731232,1769514639095,-500.0,0.00011948,2]
[403731233,1769514639105,-500.0,0.00011948,2]
[403731234,1769514639114,-337.23802427,0.00011948,2]
[403731235,1769514639124,-500.0,0.00011948,2]
[403731236,1769514639134,-500.0,0.00011948,2]
[403731237,1769514639144,-500.0,0.00011948,2]
[403731238,1769514639154,-500.0,0.00011948,2]
[403731239,1769514639164,-500.0,0.00011948,2]
[403731240,1769514639174,-500.0,0.00011948,2]
[403731241,1769514639183,-500.0,0.00011948,2]
[403731242,1769514639193,-500.0,0.00011948,2]
[403731243,1769514639203,-500.0,0.00011948,2]
[403731244,1769514639212,-500.0,0.00011948,2]
[403731245,1769514639222,-500.0,0.00011948,2]
[403731246,1769514639231,-296.37422965,0.00011948,2]
[403731247,1769514639241,-500.0,0.00011948,2]
[403731248,1769514639251,-500.0,0.00011948,2]
[403731249,1769514639261,-500.0,0.00011948,2]
[403731250,1769514639272,-500.0,0.00011948,2]
[403731251,1769514639282,-500.0,0.00011948,2]
[403731252,1769514639292,-500.0,0.00011948,2]
[403731253,1769514639302,-500.0,0.00011948,2]
[403731254,1769514639311,-500.0,0.00011948,2]
[403731255,1769514639321,-500.0,0.00011948,2]
[403731256,1769514639330,-500.0,0.00011948,2]
[403731257,1769514639340,-500.0,0.00011948,2]
[403731258,1769514639349,-500.0,0.00011948,2]
[403731259,1769514639358,-500.0,0.00011948,2]
[403731260,1769514639372,-500.0,0.00011948,2]
[403731261,1769514639381,-500.0,0.00011948,2]
[403731262,1769514639390,-500.0,0.00011948,2]
[403731263,1769514639400,-500.0,0.00011948,2]
[403731264,1769514639409,-500.0,0.00011948,2]
[403731265,1769514639419,-500.0,0.00011948,2]
[403731266,1769514639429,-500.0,0.00011948,2]
[403731267,1769514639438,-500.0,0.00011948,2]
[403731268,1769514639448,-500.0,0.00011948,2]
[403731269,1769514639458,-500.0,0.00011948,2]
[403731270,1769514639469,-500.0,0.00011948,2]
[403731271,1769514639483,-500.0,0.00011948,2]
[403731272,1769514639494,-500.0,0.00011948,2]
[403731273,1769514639505,-500.0,0.00011948,2]
[403731274,1769514639514,-500.0,0.00011948,2]
[403731275,1769514639524,-500.0,0.00011948,2]
[403731276,1769514639533,-500.0,0.00011948,2]
[403731277,1769514639543,-500.0,0.00011948,2]
[403731278,1769514639554,-500.0,0.00011948,2]
[403731279,1769514639564,-500.0,0.00011948,2]
[403731280,1769514639573,-500.0,0.00011948,2]
[403731281,1769514639583,-500.0,0.00011948,2]
[403731282,1769514639592,-500.0,0.00011948,2]
[403731283,1769514639602,-500.0,0.00011948,2]
[403731284,1769514639611,-500.0,0.00011948,2]
[403731285,1769514639621,-500.0,0.00011948,2]
[403731286,1769514639631,-500.0,0.00011948,2]
[403731287,1769514639641,-500.0,0.00011948,2]
[403731288,1769514639651,-500.0,0.00011948,2]
[403731289,1769514639661,-500.0,0.00011948,2]
[403731290,1769514639670,-500.0,0.00011948,2]
[403731291,1769514639680,-166.4866986,0.00011948,2]
[403731292,1769514639690,-532.07829828,0.00011948,2]
[403731293,1769514639700,-532.07829828,0.00011948,2]
[403731294,1769514639709,-532.07829828,0.00011948,2]
[403731295,1769514639719,-532.07829828,0.00011948,2]
[403731296,1769514639728,-532.07829828,0.00011948,2]
[403731297,1769514639738,-532.07829828,0.00011948,2]
[403731298,1769514639747,-532.07829828,0.00011948,2]
[403731299,1769514639756,-532.07829828,0.00011948,2]
[403731300,1769514639766,-532.07829828,0.00011948,2]
[403731301,1769514639776,-532.07829828,0.00011948,2]
[403731302,1769514639785,-532.07829828,0.00011948,2]
[403731303,1769514639795,-532.07829828,0.00011948,2]
[403731304,1769514639804,-532.07829828,0.00011948,2]
[403731305,1769514639813,-532.07829828,0.00011948,2]
[403731306,1769514639823,-532.07829828,0.00011948,2]
[403731307,1769514639832,-532.07829828,0.00011948,2]
[403731308,1769514639842,-532.07829828,0.00011948,2]
[403731309,1769514639851,-532.07829828,0.00011948,2]
[403731310,1769514639861,-532.07829828,0.00011948,2]
[403731311,1769514639871,-532.07829828,0.00011948,2]
[403731312,1769514639881,-532.07829828,0.00011948,2]
[403731313,1769514639891,-532.07829828,0.00011948,2]
[403731314,1769514639902,-532.07829828,0.00011948,2]
[403731315,1769514639912,-532.07829828,0.00011948,2]
[403731316,1769514639922,-532.07829828,0.00011948,2]
[403731317,1769514639932,-532.07829828,0.00011948,2]
[403731318,1769514639941,-532.07829828,0.00011948,2]
[403731319,1769514639952,-532.07829828,0.00011948,2]
[403731320,1769514639962,-500.0,0.00011948,2]
[403731321,1769514639971,-500.0,0.00011948,2]
[403731322,1769514639981,-500.0,0.00011948,2]
[403731323,1769514639991,-300.0,0.00011949,2]
[403731324,1769514640001,-300.0,0.00011949,2]
[403731325,1769514640011,-300.0,0.00011949,2]
[403731326,1769514640021,-300.0,0.00011949,2]
[403731327,1769514640030,-300.0,0.00011949,2]
[403731328,1769514640039,-300.0,0.00011949,2]
[403731329,1769514640049,-300.0,0.00011949,2]
[403731330,1769514640058,-300.0,0.00011949,2]
[403731331,1769514640068,-300.0,0.00011949,2]
[403731332,1769514640078,-300.0,0.00011949,2]
[403731333,1769514640087,-300.0,0.00011949,2]
[403731334,1769514640097,-300.0,0.00011949,2]
[403731335,1769514640108,-300.0,0.00011949,2]
[403731336,1769514640119,-300.0,0.00011949,2]
[403731337,1769514640129,-300.0,0.00011949,2]
[403731338,1769514640140,-164.78,0.00012329,2]
[403731339,1769514640155,-823.95,0.00012329,2]
[403731340,1769514640166,-197.74,0.00012329,2]
[403731341,1769514640177,-1015.0,0.0001301,2]
[403731342,1769514640187,-420.0,0.00013116,2]
[403731343,1769514640196,-175.05414771,0.00013273,2]
[403731344,1769514640208,-212.6308883,0.00013273,2]
[403731345,1769514640217,-500.0,0.00013273,2]
[403731346,1769514640227,-500.0,0.00013273,2]
[403731347,1769514640238,-500.0,0.00013273,2]
[403731348,1769514640248,-337.47725408,0.00013273,2]
[403731349,1769514640259,-500.0,0.00013273,2]
[403731350,1769514640271,-500.0,0.00013273,2]
[403731351,1769514640284,-500.0,0.00013273,2]
[403731352,1769514640294,-500.0,0.00013273,2]
[403731353,1769514640304,-500.0,0.00013273,2]
[403731354,1769514640314,-500.0,0.00013273,2]
[403731355,1769514640324,-600.0,0.00013537,2]
[403731356,1769514640334,-300.0,0.00013673,2]
[403731357,1769514640344,-261.73487735,0.00013694,2]
[403731358,1769514640354,-500.0,0.00013694,2]
[403731359,1769514640366,-198.76029226,0.00013694,2]
[403731360,1769514640376,-6364.14226509,0.00013695,2]
[403731361,1769514640387,-500.0,0.00013698,2]
[403731362,1769514640396,-500.0,0.00013698,2]
[403731363,1769514640407,-500.0,0.00013698,2]
[403731364,1769514640417,-500.0,0.00013698,2]
[403731365,1769514640427,-500.0,0.00013698,2]
[403731366,1769514640437,-500.0,0.00013698,2]
[403731367,1769514640446,-500.0,0.00013698,2]
[403731368,1769514640456,-500.0,0.00013698,2]
[403731369,1769514640469,-500.0,0.00013698,2]
[403731370,1769514640479,-500.0,0.00013698,2]
[403731371,1769514640489,-500.0,0.00013698,2]
[403731372,1769514640498,-500.0,0.00013698,2]
[403731373,1769514640509,-500.0,0.00013698,2]
[403731374,1769514640520,-500.0,0.00013698,2]
[403731375,1769514640529,-500.0,0.00013698,2]
[403731376,1769514640539,-500.0,0.00013698,2]
[403731377,1769514640549,-500.0,0.00013698,2]
[403731379,1769514640559,-500.0,0.00013698,2]
[403731381,1769514640568,-500.0,0.00013698,2]
[403731383,1769514640578,-500.0,0.00013698,2]
[403731385,1769514640587,-500.0,0.00013698,2]
[403731387,1769514640597,-500.0,0.00013698,2]
[403731389,1769514640606,-500.0,0.00013698,2]
[403731391,1769514640616,-500.0,0.00013698,2]
[403731393,1769514640625,-26646.7941763,0.00013699,2]
[403731395,1769514640634,-1242.712776,0.00013699,2]
[403731412,1769514640794,-500.0,0.00013699,2]
[403731414,1769514640806,-500.0,0.00013699,2]
[403731416,1769514640816,-500.0,0.00013699,2]
[403731418,1769514640826,-500.3335731,0.00013699,2]
[403731420,1769514640836,-538.71956343,0.00013699,2]
[403731422,1769514640846,-500.0,0.00013699,2]
[403731424,1769514640856,-475.84589166,0.00013699,2]
[403731426,1769514640867,-428.71748141,0.00013769,2]
[403731428,1769514640877,-556.86628974,0.00013821,2]
[403731430,1769514640887,-1000.0,0.00013821,2]
[403731432,1769514640897,-1000.0,0.00013821,2]
[403731434,1769514640908,-1000.0,0.00013821,2]
[403731437,1769514640919,-1000.0,0.00013821,2]
[403731439,1769514640930,-1000.0,0.00013821,2]
[403731441,1769514640942,-448.22561692,0.00013821,2]
[403731443,1769514640952,-47979.9717187,0.0001384,2]
[403731445,1769514640963,-173.7988727,0.0001384,2]
[403731447,1769514640974,-600.0,0.00014221,2]
[403731449,1769514640984,-339.76894093,0.00014247,2]
[403731451,1769514640995,-1000.0,0.00014247,2]
[403731453,1769514641005,-1000.0,0.00014247,2]
[403731455,1769514641014,-1000.0,0.00014247,2]
[403731457,1769514641024,-1451.8102882,0.00014368,2]
[403731459,1769514641035,-1500.0,0.00014368,2]
[403731461,1769514641045,-1500.0,0.00014368,2]
[403731463,1769514641055,-1500.0,0.00014368,2]
[403731464,1769514641065,-1500.0,0.00014368,2]
[403731465,1769514641075,-587.0,0.00014399,2]
[403731466,1769514641086,-900.0,0.00014768,2]
[403731467,1769514641097,-1500.0,0.00014795,2]
[403731468,1769514641107,-1500.0,0.00014795,2]
[403731469,1769514641118,-1500.0,0.00014795,2]
[403731470,1769514641128,-720.0,0.00014891,2]
[403731471,1769514641139,-2000.0,0.00014916,2]
[403731472,1769514641149,-2000.0,0.00014916,2]
[403731473,1769514641160,-2000.0,0.00014916,2]
[403731474,1769514641170,-2000.0,0.00014916,2]
[403731475,1769514641181,-500.0,0.00015054,2]
[403731476,1769514641191,-150.0,0.00015054,2]
[403731477,1769514641202,-150.0,0.00015054,2]
[403731478,1769514641212,-150.0,0.00015054,2]
[403731479,1769514641222,-150.0,0.00015054,2]
[403731480,1769514641233,-150.0,0.00015054,2]
[403731481,1769514641243,-150.0,0.00015054,2]
[403731482,1769514641254,-500.0,0.00015191,2]
[403731483,1769514641265,-150.0,0.00015191,2]
[403731484,1769514641277,-150.0,0.00015191,2]
[403731485,1769514641287,-150.0,0.00015191,2]
[403731486,1769514641298,-150.0,0.00015191,2]
[403731487,1769514641308,-150.0,0.00015191,2]
[403731488,1769514641318,-150.0,0.00015191,2]
[403731489,1769514641329,-1200.0,0.00015316,2]
[403731490,1769514641339,-500.0,0.00015328,2]
[403731492,1769514641349,-150.0,0.00015328,2]
[403731494,1769514641359,-150.0,0.00015328,2]
[403731495,1769514641370,-150.0,0.00015328,2]
[403731497,1769514641379,-200.0,0.00015328,2]
[403731499,1769514641389,-200.0,0.00015328,2]
[403731501,1769514641399,-150.0,0.00015328,2]
[403731504,1769514641409,-2115.71955138,0.00015342,2]
[403731505,1769514641418,-2000.0,0.00015342,2]
[403731507,1769514641428,-1000.0,0.00015342,2]
[403731509,1769514641437,-2500.0,0.00015464,2]
[403731511,1769514641447,-2500.0,0.00015464,2]
[403731513,1769514641456,-2500.0,0.00015464,2]
[403731515,1769514641466,-2500.0,0.00015464,2]
[403731517,1769514641478,-500.0,0.00015465,2]
[403731519,1769514641487,-150.0,0.00015465,2]
[403731521,1769514641497,-150.0,0.00015465,2]
[403731523,1769514641506,-200.0,0.00015465,2]
[403731525,1769514641515,-150.0,0.00015465,2]
[403731527,1769514641525,-1572.69,0.00015559,2]
[403731529,1769514641534,-470.82635095,0.00015602,2]
[403731531,1769514641544,-186.50377606,0.00015602,2]
[403731533,1769514641553,-150.0,0.00015602,2]
[403731535,1769514641563,-150.0,0.00015602,2]
[403731537,1769514641573,-1932.46060126,0.0001564,2]
[403731539,1769514641582,-250.0,0.00015739,2]
[403731541,1769514641591,-250.0,0.00015739,2]
[403731543,1769514641601,-494.11506332,0.00015769,2]
[403731545,1769514641610,-250.0,0.00015787,2]
[403731547,1769514641620,-823.0,0.00015808,2]
[403731549,1769514641631,-1500.0,0.00015864,2]
[403731551,1769514641641,-2500.0,0.0001589,2]
[403731553,1769514641651,-3000.0,0.00016012,2]
[403731555,1769514641662,-2500.0,0.00016012,2]
[403731557,1769514641672,-2328.85776734,0.00016012,2]
[403731559,1769514641683,-2000.0,0.00016012,2]
[403731561,1769514641693,-172.3448985,0.00016314,2]
[403731563,1769514641704,-200.0,0.00016338,2]
[403731565,1769514641713,-163.05,0.00016338,2]
[403731567,1769514641723,-163.05,0.00016338,2]
[403731569,1769514641733,-163.04,0.00016338,2]
[403731571,1769514641743,-500.0,0.00016338,2]
[403731573,1769514641753,-500.0,0.00016338,2]
[403731575,1769514641763,-2297.15,0.00016338,2]
[403731577,1769514641773,-864.0,0.0001638,2]
[403731579,1769514641782,-1218.12397634,0.00016412,2]
[403731581,1769514641792,-201.93286099,0.00016414,2]
[403731583,1769514641803,-209.40437684,0.00016414,2]
[403731585,1769514641812,-217.15233878,0.00016414,2]
[403731587,1769514641822,-225.18697532,0.00016414,2]
[403731589,1769514641833,-233.51889341,0.00016414,2]
[403731591,1769514641843,-242.15909246,0.00016414,2]
[403731593,1769514641852,-251.11897888,0.00016414,2]
[403731595,1769514641862,-260.4103811,0.00016414,2]
[403731597,1769514641872,-270.0455652,0.00016414,2]
[403731599,1769514641882,-280.03725112,0.00016414,2]
[403731601,1769514641891,-290.39862941,0.00016414,2]
[403731603,1769514641903,-301.1433787,0.00016414,2]
[403731605,1769514641914,-160.0,0.00016414,2]
[403731607,1769514641924,-1957.856,0.00016414,2]
[403731609,1769514641934,-160.0,0.00016414,2]
[403731611,1769514641944,-151.0,0.00016414,2]
[403731613,1769514641954,-160.0,0.00016414,2]
[403731615,1769514641963,-151.0,0.00016414,2]
[403731617,1769514641973,-278.15468107,0.00016414,2]
[403731619,1769514641983,-151.0,0.00016414,2]
[403731621,1769514641993,-151.0,0.00016414,2]
[403731623,1769514642003,-151.0,0.00016414,2]
[403731625,1769514642012,-151.0,0.00016414,2]
[403731627,1769514642022,-151.0,0.00016414,2]
[403731629,1769514642031,-151.0,0.00016414,2]
[403731631,1769514642041,-151.0,0.00016414,2]
[403731633,1769514642051,-151.0,0.00016414,2]
[403731635,1769514642062,-151.0,0.00016414,2]
[403731637,1769514642072,-151.0,0.00016414,2]
[403731639,1769514642082,-151.0,0.00016414,2]
[403731641,1769514642092,-2674.60743027,0.00016414,2]
[403731643,1769514642101,-151.0,0.00016414,2]
[403731645,1769514642111,-151.0,0.00016414,2]
[403731647,1769514642121,-184.79370696,0.00016414,2]
[403731649,1769514642131,-151.0,0.00016414,2]
[403731651,1769514642141,-151.0,0.00016414,2]
[403731653,1769514642152,-164.81135061,0.00016414,2]
[403731655,1769514642163,-162.380719,0.00016414,2]
[403731657,1769514642173,-553.64373807,0.00016414,2]
[403731659,1769514642184,-668.65185757,0.00016414,2]
[403731661,1769514642194,-30000.0,0.00016414,2]
[403731663,1769514642204,-250.0,0.00016414,2]
[403731665,1769514642214,-250.0,0.00016414,2]
[403731667,1769514642224,-250.0,0.00016414,2]
[403731669,1769514642234,-200.0,0.00016438,2]
[403731671,1769514642244,-597.36308132,0.00016438,2]
[403731673,1769514642253,-155.27552834,0.00016438,2]
[403731675,1769514642263,-3000.0,0.00016438,2]
[403731677,1769514642273,-201.4653447,0.00016456,2]
[403731679,1769514642283,-150.0,0.00016456,2]
[403731681,1769514642292,-150.0,0.00016456,2]
[403731683,1769514642301,-150.0,0.00016456,2]
[403731685,1769514642311,-150.0,0.00016456,2]
[403731687,1769514642320,-150.0,0.00016456,2]
[403731689,1769514642329,-150.0,0.00016456,2]
[403731691,1769514642339,-150.0,0.00016456,2]
[403731693,1769514642348,-150.0,0.00016456,2]
[403731695,1769514642357,-150.0,0.00016456,2]
[403731697,1769514642367,-2030.296672,0.00016469,2]
[403731699,1769514642378,-646.36,0.00016515,2]
[403731701,1769514642388,-1118.09358773,0.00016524,2]
[403731703,1769514642398,-1500.0,0.0001656,2]
[403731705,1769514642408,-150.0,0.00016593,2]
[403731707,1769514642419,-150.0,0.00016593,2]
[403731709,1769514642429,-150.0,0.00016593,2]
[403731711,1769514642439,-150.0,0.00016593,2]
[403731713,1769514642449,-150.0,0.00016593,2]
[403731715,1769514642459,-150.0,0.0001673,2]
[403731717,1769514642474,-200.0,0.0001673,2]
[403731719,1769514642484,-150.0,0.0001673,2]
[403731721,1769514642495,-150.0,0.0001673,2]
[403731723,1769514642507,-150.0,0.0001673,2]
[403731726,1769514642517,-10705.7787735,0.0001679,2]
[403731727,1769514642527,-292.45970376,0.00016867,2]
[403731729,1769514642537,-150.0,0.00016867,2]
[403731732,1769514642550,-150.0,0.00016867,2]
[403731734,1769514642561,-150.0,0.00016867,2]
[403731736,1769514642573,-324.73,0.000169,2]
[403731738,1769514642586,-597.83,0.000169,2]
[403731740,1769514642595,-623.78,0.000169,2]
[403731742,1769514642606,-2773.56790519,0.00016962,2]
[403731744,1769514642616,-574.12855637,0.00016962,2]
[403731746,1769514642626,-693.3919763,0.00016962,2]
[403731748,1769514642636,-31110.0,0.00016962,2]
[403731750,1769514642646,-3500.0,0.00016986,2]
[403731752,1769514642656,-150.0,0.00017004,2]
[403731754,1769514642666,-150.0,0.00017004,2]
[403731756,1769514642677,-150.0,0.00017004,2]
[403731758,1769514642688,-500.0,0.00017083,2]
[403731760,1769514642698,-250.0,0.00017141,2]
[403731762,1769514642708,-250.0,0.00017141,2]
[403731764,1769514642718,-250.0,0.00017141,2]
[403731766,1769514642727,-1292.72,0.00017302,2]
[403731768,1769514642737,-1152.0,0.00017354,2]
[403731770,1769514642748,-300.0,0.00017355,2]
[403731772,1769514642757,-2388.7821322,0.00017448,2]
[403731774,1769514642768,-2876.18991768,0.0001751,2]
[403731775,1769514642777,-539.84671027,0.0001751,2]
[403731777,1769514642786,-497.75872377,0.0001751,2]
[403731779,1769514642796,-4836.22573926,0.0001751,2]
[403731781,1769514642806,-4000.0,0.00017534,2]
[403731783,1769514642815,-1041.66666667,0.00017595,2]
[403731785,1769514642825,-559.51264522,0.00017769,2]
[403731787,1769514642835,-172.3448985,0.00017857,2]
[403731789,1769514642845,-1000.0,0.00018018,2]
[403731791,1769514642855,-2982.60894464,0.00018058,2]
[403731793,1769514642865,-2319.71586935,0.00018082,2]
[403731795,1769514642875,-1939.09,0.00018088,2]
[403731797,1769514642885,-160.0,0.00018131,3]
[403731799,1769514642895,-729.0,0.000184,2]
[403731801,1769514642905,-729.0,0.000184,2]
[403731803,1769514642915,-150.0,0.00018618,2]
[403731805,1769514642925,-501.31416643,0.00018664,5]
[403731807,1769514642935,-729.0,0.0001872,2]
[403731809,1769514642945,-729.0,0.0001872,2]
[403731811,1769514642955,-729.0,0.0001872,2]
[403731813,1769514642965,-327.17,0.00018767,2]
[403731815,1769514642975,-500.0,0.00018795,2]
[403731817,1769514642986,-500.0,0.00018795,2]
[403731819,1769514642996,-2585.45,0.00018874,2]
[403731821,1769514643006,-303.10001605,0.000189,2]
[403731823,1769514643016,-303.10001603,0.000189,2]
[403731825,1769514643026,-729.0,0.0001904,2]
[403731827,1769514643036,-729.0,0.0001904,2]
[403731829,1769514643046,-1613.0,0.00019052,2]
[403731831,1769514643055,-484.0,0.00019088,2]
[403731833,1769514643064,-303.10001603,0.00019089,2]
[403731835,1769514643074,-339.44301533,0.00019096,2]
[403731837,1769514643084,-507.98,0.00019178,2]
[403731839,1769514643094,-1523.95,0.00019178,2]
[403731841,1769514643104,-1015.96,0.00019178,2]
[403731843,1769514643114,-506.73,0.00019178,2]
[403731845,1769514643125,-846.64,0.00019178,2]
[403731847,1769514643135,-507.98,0.00019178,2]
[403731849,1769514643145,-507.99,0.00019178,2]
[403731851,1769514643156,-507.98,0.00019178,2]
[403731853,1769514643167,-707.98,0.00019178,2]
[403731855,1769514643177,-200.0,0.00019178,2]
[403731857,1769514643187,-315.97,0.00019178,2]
[403731859,1769514643198,-500.0,0.00019178,2]
[403731861,1769514643208,-761.97,0.00019178,2]
[403731863,1769514643219,-800.0,0.0001923,2]
[403731864,1769514643229,-303.10001603,0.00019278,2]
[403731867,1769514643240,-157.69654565,0.00019288,30]
[403731868,1769514643251,-157.69654565,0.00019288,30]
[403731870,1769514643261,-500.0,0.00019336,2]
[403731873,1769514643275,-500.0,0.00019336,2]
[403731875,1769514643286,-457.9601473,0.00019337,2]
[403731877,1769514643296,-824.32826513,0.00019337,2]
[403731879,1769514643307,-1465.47247135,0.00019337,2]
[403731881,1769514643318,-2289.80073649,0.00019337,2]
[403731883,1769514643328,-685.26647008,0.00019337,2]
[403731884,1769514643339,-1233.47964614,0.00019337,2]
[403731886,1769514643350,-2192.85270425,0.00019337,2]
[403731889,1769514643361,-3426.33235039,0.00019337,2]
[403731890,1769514643372,-729.0,0.0001936,2]
[403731892,1769514643385,-729.0,0.0001936,2]
[403731894,1769514643395,-320.0,0.0001936,2]
[403731897,1769514643406,-729.0,0.0001936,2]
[403731900,1769514643419,-172.3448985,0.000194,2]
[403731901,1769514643431,-303.10001603,0.00019467,2]
[403731903,1769514643442,-3040.7219313,0.00019484,2]
[403731905,1769514643453,-12737.7540715,0.00019484,2]
[403731907,1769514643464,-500.0,0.00019499,2]
[403731909,1769514643476,-500.0,0.00019499,2]
[403731911,1769514643488,-200.0,0.00019499,2]
[403731913,1769514643500,-500.0,0.00019499,2]
[403731915,1769514643511,-500.0,0.00019499,2]
[403731917,1769514643522,-500.0,0.00019499,2]
[403731919,1769514643532,-500.0,0.00019499,2]
[403731921,1769514643543,-1000000.0,0.000195,2]
[403731923,1769514643553,-151.0,0.000195,2]
[403731925,1769514643564,-151.0,0.000195,2]
[403731927,1769514643574,-151.0,0.000195,2]
[403731929,1769514643584,-151.0,0.000195,2]
[403731931,1769514643595,-151.0,0.000195,2]
[403731933,1769514643605,-151.0,0.000195,2]
[403731935,1769514643616,-151.0,0.000195,2]
[403731937,1769514643626,-210.11877566,0.000195,2]
[403731939,1769514643636,-487.0,0.000195,2]
[403731941,1769514643648,-487.0,0.000195,2]
[403731943,1769514643659,-487.0,0.000195,2]
[403731945,1769514643670,-487.0,0.000195,2]
[403731947,1769514643681,-586.67,0.000195,2]
[403731949,1769514643693,-6412.2424032,0.00019535,2]
[403731951,1769514643704,-670.086,0.00019585,2]
[403731953,1769514643716,-2155.187,0.00019585,2]
[403731955,1769514643726,-1372.504,0.00019585,2]
[403731957,1769514643737,-500.0,0.000196,2]
[403731959,1769514643748,-9527.436727,0.000196,7]
[403731961,1769514643758,-153.5789033,0.000196,2]
[403731963,1769514643768,-952.16682424,0.000196,7]
[403731965,1769514643779,-1375.49107232,0.000196,7]
[403731967,1769514643789,-664.0,0.000196,2]
[403731969,1769514643801,-191636.44941811,0.000196,2]
[403732008,1769514644299,-5000.0,0.00011829,2]
[403732009,1769514644312,-250.0,0.00016414,2]
[403732010,1769514644323,-250.0,0.00016414,2]
[403732011,1769514644334,-42.0,0.00016414,2]
[403732012,1769514644477,-208.0,0.00016414,2]
[403732013,1769514644486,-250.0,0.00016414,2]
[403732014,1769514644496,-168.16112549,0.00016414,2]
[403732015,1769514645254,-74.25448447,0.00016414,2]
[403732061,1769514647316,-7.58439004,0.00016414,2]
[403732062,1769514647327,-250.00000003,0.00016414,2]
[403732063,1769514647337,-475.0,0.00019089,2]
[403732064,1769514647346,-2966.93843196,0.000196,2]
[403732065,1769514647370,-461.02753643,0.000196,2]
[403732070,1769514745490,452.44757909,0.00034944,120]
[403732071,1769514785246,191.37491647,0.00035,120]
[403732072,1769514897833,3037.0,0.00035,120]
[403732074,1769515237379,-300.0,0.00011943,2]
[403732075,1769515237406,-188.0,0.00011943,2]
[403732076,1769515237433,-416.99691769,0.00011943,2]
[403732077,1769515237489,-783.00308231,0.00011943,2]
[403732078,1769515266618,-300.0,0.00011942,2]
[403732079,1769515266651,-304.99691769,0.00011943,2]
[403732127,1769515485974,-5000.0,0.00011705,2]
[403732128,1769515493152,-5000.0,0.00011705,2]
[403732129,1769515501693,-2592.99691769,0.00011386,2]
[403732130,1769515501721,-1736.64953323,0.00011501,2]